bitfinex-derivatives/quotes_SOLF0:USTF0_20250311
["timestamp","ask_amount","ask_price","bid_price","bid_amount"]
[1741718742187,7.8917,126.75,126.73,0.05696905]
[1741718742388,0.05949473,126.76,126.73,0.05696905]
[1741718743385,0.05949473,126.76,126.75,7.8917]
[1741718744690,9.473e-05,126.76,126.75,7.8917]
[1741718744883,9.473e-05,126.76,126.75,48.0917]
[1741718748287,9.473e-05,126.76,126.75,50.4517]
[1741718748491,260.42,126.83,126.75,50.4517]
[1741718748492,260.42,126.83,126.82,7.8873]
[1741718749696,260.42,126.83,126.81,0.05285737]
[1741718750390,7.8873,126.82,126.81,0.05285737]
[1741718751597,260.42,126.83,126.77,40.18]
[1741718752691,0.05057697,126.81,126.79,0.05594918]
[1741718753195,0.05057697,126.81,126.8,7.8886]
[1741718753585,7.697e-05,126.81,126.8,7.8886]
[1741718754091,7.697e-05,126.81,126.79,7.94484918]
[1741718754393,7.697e-05,126.81,126.79,0.05594918]
[1741718754988,7.697e-05,126.81,126.8,7.8886]
[1741718757491,7.697e-05,126.81,126.8,10.2486]
[1741718757693,7.697e-05,126.81,126.8,13.7465]
[1741718757894,7.697e-05,126.81,126.8,46.04739417]
[1741718758999,7.697e-05,126.81,126.8,13.7465]
[1741718760198,7.697e-05,126.81,126.8,11.3865]
[1741718760398,7.697e-05,126.81,126.8,48.0286]
[1741718760903,7.697e-05,126.81,126.8,50.3886]
[1741718761196,7.697e-05,126.81,126.8,48.0286]
[1741718761598,7.697e-05,126.81,126.8,48.0086]
[1741718762400,7.697e-05,126.81,126.8,50.3686]
[1741718763101,263.7902,126.89,126.88,7.8836]
[1741718763297,260.28,126.89,126.88,7.8836]
[1741718763498,207.7556,126.98,126.86,40.12]
[1741718763499,270.9052,126.95,126.86,40.12]
[1741718763698,270.9052,126.95,126.9,7.8818]
[1741718763899,7.8806,126.93,126.9,7.8818]
[1741718764304,0.05172848,126.93,126.91,7.8816]
[1741718764500,7.93232848,126.93,126.9,0.0548705]
[1741718764803,0.05172848,126.93,126.9,0.0548705]
[1741718765199,0.05172848,126.93,126.9,7.9367705]
[1741718765395,0.05172848,126.93,126.9,0.0548705]
[1741718765599,0.05172848,126.93,126.9,40.1748705]
[1741718765800,0.05172848,126.93,126.92,7.8811]
[1741718766001,0.05172848,126.93,126.9,40.1748705]
[1741718766205,0.05172848,126.93,126.9,0.0548705]
[1741718766898,7.93262848,126.93,126.9,0.0548705]
[1741718767104,0.05172848,126.93,126.9,0.0548705]
[1741718768706,0.05172848,126.93,126.91,7.8814]
[1741718768907,0.05172848,126.93,126.9,0.0548705]
[1741718769101,0.05172848,126.93,126.92,7.8811]
[1741718770098,2.848e-05,126.93,126.92,47.9611]
[1741718772510,2.848e-05,126.93,126.9,0.0548705]
[1741718774002,2.848e-05,126.93,126.91,7.8815]
[1741718774207,2.848e-05,126.93,126.9,0.0548705]
[1741718774510,2.848e-05,126.93,126.92,7.8811]
[1741718783507,2.848e-05,126.93,126.91,7.8814]
[1741718783915,2.848e-05,126.93,126.9,40.0948705]
[1741718784316,2.848e-05,126.93,126.9,40.0748705]
[1741718784713,2.848e-05,126.93,126.91,7.8814]
[1741718785107,2.848e-05,126.93,126.9,40.0748705]
[1741718785307,2.848e-05,126.93,126.91,7.8817]
[1741718786015,2.848e-05,126.93,126.92,7.8811]
[1741718786216,2.848e-05,126.93,126.9,40.0748705]
[1741718786417,2.848e-05,126.93,126.9,47.9569705]
[1741718786616,7.8812,126.92,126.9,47.9569705]
[1741718787216,7.88092848,126.93,126.9,47.9569705]
[1741718787514,7.88092848,126.93,126.9,40.0748705]
[1741718787720,2.848e-05,126.93,126.9,40.0748705]
[1741718788021,2.848e-05,126.93,126.9,0.0548705]
[1741718788614,7.88092848,126.93,126.9,7.9367705]
[1741718788819,2.848e-05,126.93,126.9,0.0548705]
[1741718789012,7.8816,126.92,126.9,0.0548705]
[1741718789520,2.848e-05,126.93,126.9,0.0548705]
[1741718790820,2.848e-05,126.93,126.92,7.8811]
[1741718792921,2.848e-05,126.93,126.91,40.02]
[1741718793322,2.848e-05,126.93,126.92,7.8811]
[1741718796922,2.848e-05,126.93,126.92,11.944]
[1741718799226,260.06,126.99,126.92,36.36379417]
[1741718800219,3.8247,127.03,126.99,7.8765]
[1741718800426,11.6993,127.03,126.99,7.8765]
[1741718800625,0.05929693,127.02,126.98,39.98]
[1741718800825,0.05929693,127.02,127.0,0.05534958]
[1741718801423,0.05929693,127.02,127.01,7.8756]
[1741718801830,9.693e-05,127.02,127.01,7.8756]
[1741718802627,217.5571828,127.09,127.01,34.66089417]
[1741718802822,217.5571828,127.09,127.02,39.96]
[1741718803033,76.04391775,127.1,127.02,39.96]
[1741718803234,32.30089417,127.06,126.94,205.7598]
[1741718803434,32.30089417,127.04,126.95,39.96]
[1741718803642,3.8761,127.05,127.0,7.8762]
[1741718803836,0.05549272,127.01,127.0,7.8762]
[1741718804242,3.8761,127.05,126.99,47.8365]
[1741718804439,0.05024145,127.02,126.99,40.01901681]
[1741718805537,0.05024145,127.02,127.0,7.8762]
[1741718805832,0.05024145,127.02,126.99,40.01901681]
[1741718806640,39.94,127.1,126.99,72.31991098]
[1741718806834,7.8729,127.06,127.01,7.8754]
[1741718807040,7.8729,127.06,127.0,4.0525]
[1741718807240,11.9125,127.09,127.0,4.0525]
[1741718807439,7.8722,127.07,127.0,4.0525]
[1741718807635,7.8567,127.09,127.0,4.0525]
[1741718807834,0.05542417,127.05,127.02,0.05435795]
[1741718808142,0.05542417,127.05,127.03,39.94]
[1741718808634,15.7276,127.09,127.05,7.8727]
[1741718809242,43.74302358,127.14,127.11,7.869]
[1741718809436,43.74302358,127.14,127.11,39.94]
[1741718809840,43.80246371,127.14,127.11,39.99169274]
[1741718810343,0.05944013,127.14,127.11,39.99169274]
[1741718810947,0.05944013,127.14,127.13,7.8681]
[1741718812045,0.05944013,127.14,127.11,39.99169274]
[1741718812244,0.05944013,127.14,127.11,0.05169274]
[1741718812951,43.74302358,127.18,127.16,7.8659]
[1741718813150,43.74302358,127.18,127.15,39.9]
[1741718813941,0.27753,127.21,127.15,39.9]
[1741718814151,0.05576898,127.18,127.15,39.95390404]
[1741718814952,0.05576898,127.18,127.15,47.82030404]
[1741718815146,0.05576898,127.18,127.15,39.95390404]
[1741718815548,0.05576898,127.18,127.17,7.8656]
[1741718816656,0.05576898,127.18,127.15,39.95390404]
[1741718817352,0.05576898,127.18,127.17,7.8656]
[1741718817852,0.05576898,127.18,127.15,39.95390404]
[1741718818550,0.05576898,127.18,127.17,7.8656]
[1741718820345,0.05576898,127.18,127.16,7.866]
[1741718820744,0.05576898,127.18,127.15,0.05390404]
[1741718821258,0.05576898,127.18,127.03,190.0]
[1741718821259,32.30089417,127.16,127.03,190.0]
[1741718821462,32.30089417,127.13,127.03,190.0]
[1741718821757,39.86,127.14,127.03,190.0]
[1741718821949,32.30089417,127.07,126.98,229.86]
[1741718822152,259.62,127.08,126.98,72.16089417]
[1741718822357,0.0530215,127.04,127.01,0.05836205]
[1741718822653,0.0530215,127.04,127.02,39.86]
[1741718822853,0.0530215,127.04,127.01,0.05836205]
[1741718823058,32.35391567,127.04,127.01,0.05836205]
[1741718825051,0.0530215,127.04,127.01,0.05836205]
[1741718826061,0.0530215,127.04,127.01,7.96866205]
[1741718826359,259.62,127.08,127.01,7.96866205]
[1741718826762,3.7788,127.12,127.03,32.30089417]
[1741718826962,3.7788,127.12,127.04,43.7883]
[1741718827262,3.9183,127.13,127.04,39.86]
[1741718827462,3.7788,127.11,127.04,39.86]
[1741718827664,0.05295174,127.09,127.07,0.05757843]
[1741718828756,0.05295174,127.09,127.07,39.91757843]
[1741718829261,7.92395174,127.09,127.07,0.05757843]
[1741718829462,52.23579793,127.09,127.07,0.05757843]
[1741718829763,60.10679793,127.09,127.07,0.05757843]
[1741718830063,52.23579793,127.09,127.07,0.05757843]
[1741718830265,7.8712,127.08,127.04,39.86]
[1741718830962,52.23579793,127.09,127.04,39.86]
[1741718831352,52.23579793,127.09,127.05,0.05517382]
[1741718832558,60.10649793,127.09,127.05,0.05517382]
[1741718832758,52.23579793,127.09,127.05,0.05517382]
[1741718832959,0.05295174,127.09,127.05,0.05517382]
[1741718833559,259.7,127.14,127.05,52.23802001]
[1741718833759,259.7,127.14,127.06,3.766]
[1741718834162,259.7,127.14,127.07,4.103]
[1741718834364,259.7,127.14,127.08,39.86]
[1741718834568,7.8692,127.12,127.08,39.86]
[1741718834759,0.05557355,127.12,127.08,39.86]
[1741718834964,0.05557355,127.12,127.1,0.05744608]
[1741718836365,0.05557355,127.12,127.03,197.5049]
[1741718836366,52.18284619,127.11,127.05,39.84]
[1741718836864,4.0933,127.1,127.05,39.84]
[1741718837266,7.8722,127.07,127.05,39.84]
[1741718837767,7.8722,127.07,127.06,0.05489932]
[1741718838265,0.05291475,127.09,127.06,0.05489932]
[1741718838660,259.7,127.14,127.07,52.18284619]
[1741718838864,259.7,127.14,127.09,7.8705]
[1741718839167,259.7,127.14,127.1,39.84]
[1741718839467,311.88284619,127.14,127.1,39.84]
[1741718839873,0.05916161,127.13,127.11,0.05131461]
[1741718840366,2.41916161,127.13,127.03,39.84]
[1741718840571,52.18284619,127.11,127.03,39.84]
[1741718840773,52.18284619,127.08,126.98,7.8057]
[1741718840967,52.18284619,127.08,126.99,39.84]
[1741718840968,7.8749,127.02,126.99,39.84]
[1741718841172,52.18284619,127.08,126.99,39.84]
[1741718841470,7.8743,127.03,127.02,0.05652045]
[1741718842668,7.8771,126.99,126.97,14.57871]
[1741718842968,259.68,127.06,126.98,39.82]
[1741718843164,7.8747,127.03,126.98,47.6972]
[1741718843469,52.18284619,127.05,126.97,14.57871]
[1741718843976,0.05675593,127.02,127.0,0.05950363]
[1741718844662,52.23960212,127.02,126.97,14.57871]
[1741718844868,0.05675593,127.02,126.97,14.57871]
[1741718845078,7.8774,126.98,126.97,14.57871]
[1741718846768,7.9330622,126.99,126.97,14.57871]
[1741718846971,0.0560622,126.99,126.97,14.57871]
[1741718847678,7.8774,126.98,126.97,14.57871]
[1741718848377,0.0560622,126.99,126.97,14.57871]
[1741718849175,7.8774,126.98,126.97,14.57871]
[1741718849378,0.0560622,126.99,126.97,14.57871]
[1741718849675,7.8774,126.98,126.97,14.57871]
[1741718850572,259.82,126.98,126.96,0.05305899]
[1741718850770,7.8791,126.96,126.9,190.0]
[1741718850968,259.82,126.98,126.9,39.84]
[1741718851768,259.82,126.98,126.9,47.7221]
[1741718851969,0.05312801,126.95,126.93,0.05004619]
[1741718852168,0.05312801,126.95,126.86,3.7761]
[1741718852169,52.2359742,126.95,126.76,101.05717194]
[1741718852380,52.2359742,126.95,126.85,39.84]
[1741718852381,3.9443,126.94,126.85,39.84]
[1741718852572,3.9443,126.94,126.86,39.84]
[1741718852971,7.881,126.93,126.87,7.8839]
[1741718853173,7.881,126.93,126.86,39.84]
[1741718853380,7.8816,126.92,126.86,39.84]
[1741718853574,0.05284875,126.91,126.89,0.05863848]
[1741718854675,52.18284619,126.9,126.82,11.6752]
[1741718854877,312.04284619,126.9,126.82,7.918]
[1741718855280,312.04284619,126.9,126.82,15.8051]
[1741718855579,312.04284619,126.9,126.82,7.918]
[1741718855979,0.05788776,126.87,126.85,0.05935271]
[1741718856875,0.05788776,126.87,126.86,7.8849]
[1741718857074,0.05788776,126.87,126.85,39.89935271]
[1741718857779,0.05788776,126.87,126.86,7.8849]
[1741718857971,0.05788776,126.87,126.85,39.89935271]
[1741718857972,259.86,126.9,126.85,39.89935271]
[1741718858171,7.8798,126.95,126.85,39.89935271]
[1741718858371,11.7741,126.95,126.85,39.84]
[1741718858573,3.8943,126.95,126.85,39.84]
[1741718858879,3.8943,126.95,126.86,52.18284619]
[1741718859068,3.8943,126.95,126.85,39.84]
[1741718859273,0.0600907,126.92,126.89,0.05680584]
[1741718859474,52.24293689,126.92,126.89,0.05680584]
[1741718859669,7.8824,126.9,126.89,0.05680584]
[1741718860580,3.9038,126.91,126.85,39.84]
[1741718860581,7.8837,126.88,126.85,39.84]
[1741718860779,3.9038,126.91,126.82,47.758]
[1741718860981,52.18284619,126.9,126.82,47.758]
[1741718861377,52.18284619,126.9,126.84,7.8858]
[1741718861581,0.06017097,126.87,126.85,0.05560325]
[1741718861774,0.06017097,126.87,126.85,7.94070325]
[1741718862170,0.06017097,126.87,126.85,0.05560325]
[1741718862376,0.06017097,126.87,126.86,7.8849]
[1741718862979,0.06017097,126.87,126.86,39.84]
[1741718863374,0.06017097,126.87,126.85,0.05560325]
[1741718864178,0.06017097,126.87,126.86,7.8849]
[1741718864979,11.6165,126.95,126.91,7.8817]
[1741718865178,3.737,126.95,126.89,39.84]
[1741718865584,11.6164,126.95,126.91,7.8812]
[1741718865881,3.737,126.95,126.89,39.84]
[1741718866284,0.0523004,126.93,126.91,0.06045657]
[1741718866774,0.0523004,126.93,126.92,7.8811]
[1741718867184,259.92,126.96,126.91,0.06045657]
[1741718868483,3.491e-05,126.95,126.91,52.24330276]
[1741718868679,3.491e-05,126.95,126.92,4.0467]
[1741718868983,3.491e-05,126.95,126.94,7.8799]
[1741718871588,3.491e-05,126.95,126.94,62.42274619]
[1741718871785,320.01494619,127.08,127.04,7.8733]
[1741718871986,320.01494619,127.08,126.94,244.54284619]
[1741718871987,312.18284619,127.08,127.01,39.82]
[1741718872184,260.0,127.08,127.01,39.82]
[1741718872391,260.0,127.08,127.02,3.9693]
[1741718872689,260.0,127.08,127.01,39.82]
[1741718872690,312.18284619,127.08,127.01,39.82]
[1741718873079,52.18284619,127.05,126.97,39.82]
[1741718873380,52.18284619,127.02,126.97,39.82]
[1741718873586,7.8756,127.01,126.97,39.82]
[1741718873787,52.18284619,127.02,126.97,39.82]
[1741718874086,52.18284619,127.02,126.97,47.6977]
[1741718874289,0.0580507,127.01,126.98,0.05601815]
[1741718875689,0.0580507,127.01,127.0,7.8762]
[1741718875883,0.0580507,127.01,126.98,0.05601815]
[1741718876678,0.0580507,127.01,126.99,7.8765]
[1741718877089,0.0580507,127.01,126.98,0.05601815]
[1741718877292,0.0580507,127.01,127.0,7.8762]
[1741718877490,0.0580507,127.01,126.98,0.05601815]
[1741718877689,7.9336507,127.01,126.98,0.05601815]
[1741718878191,7.9336507,127.01,126.98,7.93341815]
[1741718878689,0.0580507,127.01,126.98,0.05601815]
[1741718878992,0.0580507,127.01,126.99,7.8763]
[1741718879192,0.0580507,127.01,126.98,0.05601815]
[1741718879394,0.0580507,127.01,127.0,7.8762]
[1741718879589,0.0580507,127.01,126.98,0.05601815]
[1741718879900,0.0580507,127.01,126.98,7.93311815]
[1741718880194,7.9339507,127.01,126.98,0.05601815]
[1741718880384,32.20899803,127.01,126.98,0.05601815]
[1741718880696,259.9,127.0,126.91,39.78]
[1741718880998,32.15094733,126.97,126.94,7.8796]
[1741718881189,32.15094733,126.97,126.91,39.78]
[1741718881586,32.15094733,126.97,126.89,4.121]
[1741718881795,0.05512783,126.95,126.93,0.05836775]
[1741718882584,40.03084733,126.94,126.93,0.05836775]
[1741718882791,0.05512783,126.95,126.93,0.05836775]
[1741718882996,0.05512783,126.95,126.93,7.93866775]
[1741718883387,0.05512783,126.95,126.93,0.05836775]
[1741718883592,0.05512783,126.95,126.94,7.8799]
[1741718883795,0.05512783,126.95,126.93,0.05836775]
[1741718885097,0.05512783,126.95,126.94,7.8799]
[1741718885898,263.6928,127.0,126.93,0.05836775]
[1741718886092,263.6928,127.0,126.93,3.90676775]
[1741718886899,32.15094733,126.97,126.93,0.05836775]
[1741718887396,32.15094733,126.94,126.86,190.0]
[1741718887699,32.15094733,126.89,126.82,39.78]
[1741718887892,32.15094733,126.89,126.83,39.78]
[1741718888294,259.94,126.91,126.83,39.78]
[1741718888490,0.05731371,126.87,126.85,0.0592641]
[1741718888697,0.05731371,126.87,126.86,7.8849]
[1741718888895,0.05731371,126.87,126.85,0.0592641]
[1741718889301,0.05731371,126.87,126.52,539.77075511]
[1741718889302,32.15094733,126.86,126.78,117.25446141]
[1741718889598,32.15094733,126.86,126.75,43.6697]
[1741718889905,32.15094733,126.88,126.76,32.15094733]
[1741718890397,0.05057129,126.83,126.81,0.05447185]
[1741718890595,52.37156111,126.89,126.82,39.76]
[1741718890796,312.31156111,126.91,126.83,39.76]
[1741718891203,259.94,126.91,126.84,3.7765]
[1741718891397,312.31156111,126.91,126.84,7.7645]
[1741718891696,52.42379895,126.89,126.86,0.05025491]
[1741718891898,60.30729895,126.89,126.86,0.05025491]
[1741718892097,52.42379895,126.89,126.86,0.05025491]
[1741718892304,52.37156111,126.86,126.8,47.668]
[1741718892601,52.37156111,126.84,126.78,3.7765]
[1741718892994,52.37156111,126.84,126.77,39.78]
[1741718893402,0.05894675,126.82,126.79,0.05977065]
[1741718893602,4.675e-05,126.82,126.79,0.05977065]
[1741718894600,4.675e-05,126.82,126.81,7.888]
[1741718894801,4.675e-05,126.82,126.81,47.668]
[1741718895901,4.675e-05,126.82,126.81,51.4927]
[1741718896698,4.675e-05,126.82,126.81,55.4668]
[1741718897303,4.675e-05,126.82,126.81,57.8268]
[1741718897707,259.94,126.91,126.9,7.8824]
[1741718898004,259.94,126.91,126.88,39.78]
[1741718898205,259.94,126.91,126.89,7.883]
[1741718898509,312.31156111,126.91,126.86,39.78]
[1741718898693,312.31156111,126.91,126.83,39.78]
[1741718898893,0.05788886,126.9,126.87,0.05757172]
[1741718899298,7.94078886,126.9,126.87,0.05757172]
[1741718899504,0.05788886,126.9,126.87,0.05757172]
[1741718899704,52.37156111,126.88,126.87,0.05757172]
[1741718899905,7.8305,126.89,126.87,0.05757172]
[1741718901205,0.05788886,126.9,126.87,0.05757172]
[1741718901806,60.25516111,126.88,126.87,0.05757172]
[1741718902004,60.25516111,126.88,126.84,7.8858]
[1741718902207,52.37156111,126.88,126.81,3.9741]
[1741718902410,3.9747,126.87,126.81,39.76]
[1741718902605,7.9494,126.87,126.81,39.76]
[1741718903104,7.9494,126.87,126.8,39.76]
[1741718903311,0.0515198,126.85,126.83,0.05736452]
[1741718903512,52.42308091,126.85,126.83,0.05736452]
[1741718904308,0.0515198,126.85,126.84,7.8861]
[1741718904504,0.0515198,126.85,126.83,0.05736452]
[1741718904709,0.0515198,126.85,126.84,7.8861]
[1741718905209,0.0515198,126.85,126.83,0.05736452]
[1741718905512,7.9375198,126.85,126.83,0.05736452]
[1741718905707,7.9375198,126.85,126.77,7.8065]
[1741718905905,52.37156111,126.84,126.81,7.8875]
[1741718906105,52.37156111,126.84,126.78,39.76]
[1741718906709,7.8853,126.86,126.78,39.76]
[1741718906909,0.05335373,126.82,126.8,0.05346546]
[1741718907105,68.20546111,126.87,126.8,0.05346546]
[1741718907310,0.05789813,126.82,126.8,0.05346546]
[1741718907610,7.8865,126.84,126.8,0.05346546]
[1741718907917,0.05127634,126.82,126.8,0.05346546]
[1741718908209,68.20556111,126.87,126.8,0.05346546]
[1741718908412,0.05885731,126.82,126.8,0.05346546]
[1741718908603,60.32096111,126.87,126.8,0.05346546]
[1741718908806,0.05306877,126.82,126.8,0.05346546]
[1741718909008,3.9747,126.87,126.86,7.8849]
[1741718909311,0.05646572,126.88,126.84,39.76]
[1741718909608,259.94,126.91,126.85,39.81917559]
[1741718909806,9.025e-05,126.87,126.86,39.76]
[1741718910006,259.94,126.91,126.86,39.76]
[1741718911002,0.05075698,126.9,126.89,7.8825]
[1741718911206,0.05075698,126.9,126.87,0.05885487]
[1741718911408,0.05075698,126.9,126.75,15.7824]
[1741718911611,312.31156111,126.91,126.8,39.76]
[1741718912112,7.8846,126.87,126.83,7.8864]
[1741718912308,52.37156111,126.88,126.8,39.76]
[1741718912613,0.05693384,126.85,126.82,0.06006604]
[1741718912913,0.05693384,126.85,126.84,7.8861]
[1741718913713,0.05693384,126.85,126.82,39.80006604]
[1741718915209,0.05693384,126.85,126.82,47.68716604]
[1741718915414,7.94273384,126.85,126.82,39.80006604]
[1741718915615,0.05693384,126.85,126.82,0.06006604]
[1741718916008,7.94273384,126.85,126.82,7.94736604]
[1741718916316,52.37156111,126.84,126.79,39.74]
[1741718916514,56.48586111,126.84,126.79,39.74]
[1741718917015,56.48586111,126.84,126.82,7.887]
[1741718917215,64.37226111,126.84,126.79,39.74]
[1741718917521,64.37226111,126.84,126.82,0.05710813]
[1741718917814,56.48586111,126.84,126.82,0.05710813]
[1741718918012,56.48586111,126.84,126.82,7.94420813]
[1741718918314,4.1143,126.84,126.82,0.05710813]
[1741718918715,0.05693384,126.85,126.82,0.05710813]
[1741718922720,0.05693384,126.85,126.83,7.8864]
[1741718922921,0.05693384,126.85,126.82,0.05710813]
[1741718923322,3.384e-05,126.85,126.84,7.8861]
[1741718923822,3.384e-05,126.85,126.84,11.7705]
[1741718924616,3.384e-05,126.85,126.84,14.1305]
[1741718925322,10.93575589,126.93,126.84,14.1305]
[1741718925522,10.93575589,126.93,126.85,32.23563765]
[1741718925920,10.93575589,126.93,126.92,7.8811]
[1741718927331,10.93575589,126.93,126.91,39.79815037]
[1741718927332,32.86718954,126.94,126.91,39.79815037]
[1741718927529,7.94012185,126.94,126.91,39.79815037]
[1741718927731,0.05992185,126.94,126.91,0.05815037]
[1741718929227,0.05992185,126.94,126.92,39.72]
[1741718931436,7.94012185,126.94,126.92,39.72]
[1741718932036,0.05992185,126.94,126.92,39.72]
[1741718932637,32.23563765,126.93,126.91,0.05815037]
[1741718932938,32.23563765,126.93,126.88,7.8833]
[1741718933139,7.8814,126.92,126.86,39.7]
[1741718933340,32.23563765,126.93,126.86,39.7]
[1741718933936,0.05521264,126.91,126.9,7.8823]
[1741718934140,0.05521264,126.91,126.88,0.05375694]
[1741718936041,0.05521264,126.91,126.88,7.93695694]
[1741718936435,0.05521264,126.91,126.88,0.05375694]
[1741718936636,0.05521264,126.91,126.9,7.8824]
[1741718936836,0.05521264,126.91,126.88,0.05375694]
[1741718937536,32.23563765,126.96,126.88,0.05375694]
[1741718937741,264.1703,126.97,126.87,32.23563765]
[1741718938144,272.0487,126.97,126.87,32.23563765]
[1741718938344,264.1703,126.97,126.87,32.23563765]
[1741718938542,264.1703,126.97,126.88,15.7672]
[1741718938741,7.935e-05,126.93,126.91,0.04986372]
[1741718938937,7.935e-05,126.93,126.92,47.5606]
[1741718940937,267.9175,127.03,127.02,7.8749]
[1741718941241,260.04,127.03,127.02,7.8749]
[1741718941642,260.04,127.03,127.01,7.8754]
[1741718942142,267.97408502,127.03,127.01,0.05209092]
[1741718942337,260.09938502,127.03,127.01,0.05209092]
[1741718942535,292.33502267,127.03,126.95,39.66]
[1741718942742,32.23563765,127.0,126.95,39.66]
[1741718943344,292.27563765,127.03,126.95,39.66]
[1741718943747,7.8768,126.99,126.98,0.05099309]
[1741718943940,32.29132599,127.0,126.98,0.05099309]
[1741718944745,0.05568834,127.0,126.98,7.92799309]
[1741718944946,0.05568834,127.0,126.98,0.05099309]
[1741718945449,32.29132599,127.0,126.98,0.05099309]
[1741718945651,32.29132599,127.0,126.92,39.66]
[1741718945844,7.8772,126.99,126.94,7.8795]
[1741718946350,7.8777,126.98,126.94,7.8795]
[1741718946750,0.05101859,126.97,126.95,0.05241185]
[1741718947050,0.05101859,126.97,126.96,7.8787]
[1741718947940,1.859e-05,126.97,126.96,47.5187]
[1741718952553,1.859e-05,126.97,126.96,39.64]
[1741718953049,1.859e-05,126.97,126.96,47.5187]
[1741718958857,1.859e-05,126.97,126.96,51.3491]
[1741718963460,1.859e-05,126.97,126.96,85.94473765]
[1741718963662,3.9298,127.07,127.04,7.8734]
[1741718963663,11.8019,127.07,127.04,7.8734]
[1741718963864,40.19633765,127.08,127.02,39.6]
[1741718964961,0.05445332,127.06,127.04,0.05819755]
[1741718965161,32.23563765,127.05,126.98,39.6]
[1741718965361,36.10423765,127.05,126.98,39.6]
[1741718965966,7.8744,127.03,127.0,7.8761]
[1741718966263,0.05837316,127.03,127.0,0.05882846]
[1741718966564,7.93267316,127.03,127.0,0.05882846]
[1741718966764,0.05837316,127.03,127.0,0.05882846]
[1741718967167,0.05837316,127.03,127.02,7.8749]
[1741718967367,0.05837316,127.03,127.02,47.4549]
[1741718968072,7.316e-05,127.03,127.02,47.4549]
[1741718968269,3.944,127.08,127.02,39.58]
[1741718968863,3.944,127.08,127.06,7.8719]
[1741718969260,3.944,127.08,127.02,39.58]
[1741718969460,4.00101456,127.08,127.06,0.0531793]
[1741718970066,0.05701456,127.08,127.06,0.0531793]
[1741718970267,0.05701456,127.08,127.06,39.6331793]
[1741718970968,0.05701456,127.08,127.06,47.5052793]
[1741718971166,0.05701456,127.08,127.06,39.6331793]
[1741718971468,3.8862,127.12,127.06,39.6331793]
[1741718972558,0.05047984,127.1,127.06,39.6331793]
[1741718973465,0.05047984,127.1,127.08,7.8709]
[1741718973663,0.05047984,127.1,127.06,39.6331793]
[1741718974469,0.05047984,127.1,127.06,0.0531793]
[1741718974867,32.23563765,127.09,127.06,0.0531793]
[1741718975067,4.0925,127.08,127.06,0.0531793]
[1741718975367,7.8708,127.09,127.06,0.0531793]
[1741718975570,0.05047984,127.1,127.06,0.0531793]
[1741718975772,7.8708,127.09,127.06,0.0531793]
[1741718976276,0.05047984,127.1,127.06,0.0531793]
[1741718976576,32.23563765,127.09,127.06,0.0531793]
[1741718977264,7.8718,127.07,127.06,0.0531793]
[1741718977469,32.23563765,127.09,127.03,7.874]
[1741718977774,32.23563765,127.05,126.96,3.8304]
[1741718977973,32.23563765,127.05,126.99,39.54]
[1741718978372,12.0155,127.06,127.03,7.874]
[1741718978876,4.20007274,127.06,127.01,0.05929456]
[1741718979967,12.07287274,127.06,127.02,7.8746]
[1741718980665,7.8731,127.05,127.01,0.05929456]
[1741718980970,4.20007274,127.06,127.01,0.05929456]
[1741718982568,4.0987,127.05,127.01,0.05929456]
[1741718982971,11.9722,127.05,127.02,7.8746]
[1741718983374,4.0987,127.05,127.01,0.05929456]
[1741718983576,7.874,127.04,127.01,0.05929456]
[1741718984180,11.9721,127.05,127.02,7.8746]
[1741718984680,4.0987,127.05,127.03,7.8739]
[1741718985278,4.20007274,127.06,127.02,39.54]
[1741718985480,0.05737274,127.06,127.02,39.54]
[1741718985978,0.05737274,127.06,127.05,7.8731]
[1741718987880,0.05737274,127.06,127.04,0.05974156]
[1741718988478,7.8731,127.05,127.04,0.05974156]
[1741718988987,0.05737274,127.06,127.04,0.05974156]
[1741718989582,7.8731,127.05,127.04,0.05974156]
[1741718990289,0.05737274,127.06,127.04,0.05974156]
[1741718990475,1.37007874,127.1,127.04,0.05974156]
[1741718990680,32.23563765,127.17,127.05,32.23563765]
[1741718990884,11.6622,127.18,127.06,39.52]
[1741718991083,10.93575589,127.16,127.06,39.52]
[1741718991788,0.05022652,127.12,127.1,0.05469038]
[1741718991988,0.05022652,127.12,127.11,39.52]
[1741718992389,0.05022652,127.12,127.11,47.3894]